[Event "Czech Open-Rapid 2022"]
[Site "Pardubice"]
[Date "2022.07.21"]
[Round "5.44"]
[White "Svoboda, Petr"]
[Black "Babulova, Mariana"]
[Result "1-0"]
[ECO "A06"]
[WhiteElo "2088"]
[BlackElo "1631"]
[Annotator "NA RC"]
[PlyCount "33"]
[EventDate "2022.07.20"]
[EventType "swiss"]
[EventCountry "CZE"]
[SourceTitle "playchess.com"]
[Source "ChessBase"]
[SourceQuality "1"]
[TimeControl "1200+10"]

1. Nf3 {[%emt 0:00:06]} d5 {[%emt 0:00:04]} 2. b3 {[%emt 0:00:04]} Nc6 {[%emt 0:00:10]} 3. d4 {[%emt 0:00:16]} Nf6 {[%emt 0:00:16]} 4. Bb2 {[%emt 0:00:10]} Bf5 {[%emt 0:00:18]} 5. Nh4 {[%emt 0:00:38]} Bd7 {[%emt 0:00:25]} 6. Nd2 {[%emt 0:00:50]} e6 {[%emt 0:00:05]} 7. Nhf3 {[%emt 0:00:17]} Bd6 {[%emt 0:00:14]} 8. e3 {[%emt 0:00:07]} O-O {[%emt 0:00:04]} 9. a3 {[%emt 0:00:09]} Ne7 {[%emt 0:00:03]} 10. Bd3 {[%emt 0:00:11]} Ng6 {[%emt 0:00:53]} 11. O-O {[%emt 0:00:22]} Re8 {[%emt 0:00:14]} 12. Ne5 {[%emt 0:00:19]} Bf8 {[%emt 0:00:34]} 13. c4 {[%emt 0:00:18]} c6 {[%emt 0:00:15]} 14. Rc1 {[%emt 0:00:14]} Rc8 {[%emt 0:00:44]} 15. f4 {[%emt 0:00:20]} Ne7 {[%emt 0:00:54]} 16. g4 {[%emt 0:00:44]} Kh8 {[%emt 0:01:32]} 17. Nxf7+ 1-0

[Event "Czech Open-Rapid 2022"]
[Site "Pardubice"]
[Date "2022.07.21"]
[Round "6.1"]
[White "Harsha Bharathakoti"]
[Black "Donchenko, Alexander"]
[Result "0-1"]
[ECO "A06"]
[WhiteElo "2547"]
[BlackElo "2640"]
[Annotator "TA"]
[PlyCount "90"]
[EventDate "2022.07.20"]
[EventType "swiss"]
[EventCountry "CZE"]
[SourceTitle "playchess.com"]
[Source "ChessBase"]
[SourceQuality "1"]
[TimeControl "1200+10"]

{[%evp 9,90,5,10,-17,0,-25,-28,-24,-7,-22,22,33,43,27,54,60,49,40,114,66,65,61,67,60,63,68,74,62,72,63,59,60,98,96,95,68,127,97,111,102,110,100,83,39,47,36,70,35,129,129,129,142,119,105,166,140,135,131,135,112,128,106,93,0,0,-92,-103,-110,-95,-242,-250,-374,-371,-5085,-5081,-4541,-854,-4610,-4610,-1945,-1925,-737,-578]} 1. Nf3 {[%emt 0:00:05]} d5 {[%emt 0:00:03]} 2. e3 {[%emt 0:00:36]} c5 {[%emt 0:00:05]} 3. b3 {[%emt 0:00:09]} Nc6 {[%emt 0:00:02]} 4. Bb5 {[%emt 0:00:41]} f6 {[%emt 0:00:02]} 5. Bxc6+ {[%emt 0:01:12]} bxc6 {[%emt 0:00:02] [#]} 6. Nc3 $146 {[%emt 0:00:09] A06: Réti Opening: 1 Nf3 d5.} ({Predecessor:} 6. d4 cxd4 7. exd4 e6 8. O-O Bd6 9. Ba3 Ne7 10. Re1 Ng6 11. Bxd6 Qxd6 12. c4 {½-½ (123) Nakamura,H (2760)-Sarana,A (2670) Chess.com INT 2022}) 6... e5 {[%emt 0:00:26]} 7. d3 {[%emt 0:00:12]} Bd6 {[%emt 0:00:27]} 8. Na4 {[%emt 0:00:19] Black has an edge.} Nh6 {[%emt 0:02:20]} 9. Ba3 {[%emt 0:00:35]} O-O {[%emt 0:00:30]} 10. Qd2 $1 {[%emt 0:01:51]} Bg4 {[%emt 0:05:40]} 11. Bxc5 {[%emt 0:02:18]} Bxc5 {[%emt 0:01:20]} 12. Nxc5 {[%emt 0:00:02]} Qe7 {[%emt 0:00:01] Strongly threatening ...Bxf3.} 13. Qc3 {[%emt 0:00:47]} Kh8 {[%emt 0:00:35]} (13... d4 $14 14. Qc4+ Kh8) 14. Na4 {[%emt 0:05:57]} (14. Nd2 $1 $16) 14... Nf5 $14 {[%emt 0:01:31]} 15. Qc5 {[%emt 0:00:13]} Qd7 {[%emt 0:01:21]} 16. Nd2 {[%emt 0:00:22] Threatens to win with h3. Pair of Knights!} Nh4 {[%emt 0:00:18]} 17. Rg1 {[%emt 0:00:02]} (17. O-O Bh3 $1 18. g3 Rfb8 $1 $17) 17... Rab8 {[%emt 0:01:10]} 18. f3 {[%emt 0:00:23]} Be6 {[%emt 0:00:03]} 19. e4 {[%emt 0:00:31]} Ng6 {[%emt 0:00:58]} 20. g3 {[%emt 0:00:15]} f5 {[%emt 0:00:54]} 21. O-O-O {[%emt 0:00:18]} Rb5 {[%emt 0:00:08]} 22. Qa3 {[%emt 0:00:52]} Rfb8 {[%emt 0:00:45]} (22... fxe4 $14 23. dxe4 Qc7) 23. exf5 {[%emt 0:00:34]} Bxf5 {[%emt 0:00:02]} 24. Nc3 {[%emt 0:00:07]} Rb4 {[%emt 0:00:25]} 25. Qa5 {[%emt 0:01:33]} Qd6 {[%emt 0:01:01]} 26. a3 {[%emt 0:00:36]} (26. Qxa7 R4b7 27. Qa5 Qe7 $15) 26... R4b7 {[%emt 0:00:15]} 27. b4 {[%emt 0:00:13]} Qf6 {[%emt 0:01:20]} 28. Nb3 {[%emt 0:01:04]} e4 {[%emt 0:00:54]} (28... Bh3 $1 $14) 29. fxe4 {[%emt 0:01:47]} Bg4 {[%emt 0:00:34] [#]} 30. Qc5 {[%emt 0:00:01] Black must now prevent Rde1.} Bxd1 {[%emt 0:00:03]} 31. Rxd1 {[%emt 0:00:01]} h6 {[%emt 0:00:22]} (31... Rd7 $16) 32. exd5 {[%emt 0:00:30]} cxd5 {[%emt 0:00:06]} 33. Nxd5 {[%emt 0:00:02]} Qg5+ {[%emt 0:00:52]} 34. Ne3 $1 {[%emt 0:00:01] Qxg5 is the strong threat.} Ne5 {[%emt 0:00:01][%cal Bg6e5,Be5c6,Bc6b4,Bb4d3][%mdl 32]} 35. Kb1 {[%emt 0:00:42]} Rb5 {[%emt 0:00:31] [#]} 36. Qxa7 {[%emt 0:00:57]} (36. Qd4 $1 $16) 36... Nc6 $1 $36 {[%emt 0:00:18][%mdl 2048] Black is pushing.} 37. h4 {[%emt 0:00:11]} Qxg3 $17 {[%emt 0:00:23]} 38. Qd7 {[%emt 0:00:03] And now Nc4 would win.} Nxb4 $1 {[%emt 0:00:09]} 39. Nf5 {[%emt 0:00:17] Now White is beyond hope.} (39. axb4 $17 {was the only defense.} Qxe3 40. c3) 39... Qg4 $1 $19 {[%emt 0:00:27][%csl LRd1,LRf5]} 40. Re1 {[%emt 0:00:10]} (40. Qxg7+ $142 Qxg7 41. Nxg7) 40... Nxd3 {[%emt 0:00:14] Chess con chili.} ({Avoid the trap} 40... Rxf5 $2 41. axb4 Qxb4 42. Re4 $19) ({Weaker is} 40... Qxf5 41. Qxf5 Rxf5 42. axb4 $19) ({But not} 40... Nxc2 $2 41. Re8+ Kh7 42. Rxb8 Nxa3+ 43. Ka2 Rxb8 44. Qxg7+ Qxg7 45. Nxg7) 41. Re8+ $2 {[%emt 0:00:11] [#]} (41. Qxd3 Rxf5 42. Re4) 41... Rxe8 $1 {[%emt 0:00:01] Black is clearly winning.} 42. Qxe8+ Kh7 {( -> ...Qd1+)} 43. Ne3 {[%emt 0:00:20] Prevents Qd1+.} Qg1+ {[%emt 0:00:26]} 44. Ka2 {[%emt 0:00:00]} Re5 {[%emt 0:00:02]} 45. Qd7 {[%emt 0:00:13]} Rxe3 {[%emt 0:00:20] Weighted Error Value: White=0.47/Black=0.11 (very precise)} 0-1

[Event "Czech Open-Rapid 2022"]
[Site "Pardubice"]
[Date "2022.07.21"]
[Round "6.2"]
[White "Korobov, Anton"]
[Black "Lalic, Bogdan"]
[Result "1-0"]
[ECO "A10"]
[WhiteElo "2692"]
[BlackElo "2412"]
[Annotator "TA"]
[PlyCount "59"]
[EventDate "2022.07.20"]
[EventType "swiss"]
[EventCountry "CZE"]
[SourceTitle "playchess.com"]
[Source "ChessBase"]
[SourceQuality "1"]
[TimeControl "1200+10"]

{[%evp 9,59,-32,33,-39,-40,-16,0,0,13,0,-8,-22,-36,-40,-33,-36,-31,-48,-31,-43,-49,-48,0,0,0,0,217,210,643,602,1622,1530,29992,29987,29992,29989,29989,29990,29990,29988,29988,29989,29989,29990,29990,29991,29991,29992,29992,29990,29996,29997]} 1. c4 {[%emt 0:00:02]} b6 {[%emt 0:00:34]} 2. Nc3 {[%emt 0:00:13]} Bb7 {[%emt 0:00:12]} 3. e4 {[%emt 0:00:06]} e5 {[%emt 0:00:17]} 4. f4 {[%emt 0:01:03]} exf4 {[%emt 0:00:20]} 5. Nf3 {[%emt 0:00:03] [#]} h6 $146 {[%emt 0:02:59]} (5... g5 $15) ({Predecessor:} 5... Nf6 6. Bd3 Bc5 7. Bc2 O-O 8. d4 Bb4 9. e5 Ne4 10. O-O Bxc3 11. bxc3 d6 {1-0 (27) Moiseenko,V (2519)-Cherniaev,A (2396) Ekaterinburg 2019}) 6. d3 {[%emt 0:04:36] A10: English Opening: Unusual Replies for Black.} ({White should play} 6. d4 $1 $14) 6... g5 $1 $15 {[%emt 0:00:14]} 7. g3 {[%emt 0:00:02]} fxg3 {[%emt 0:00:33]} 8. hxg3 {[%emt 0:00:02][%cal Oc1g5] The position is equal.} Bg7 $1 {[%emt 0:00:11]} 9. Be3 {[%emt 0:00:24]} Nc6 {[%emt 0:01:18]} 10. Bh3 {[%emt 0:01:56]} Nf6 {[%emt 0:00:52] Strongly threatening ...g4.} 11. Nd4 {[%emt 0:03:15] Black must now prevent Nf5.} Nxd4 {[%emt 0:00:18]} (11... Nd5 {is more complex.} 12. cxd5 Nxd4 13. Qa4 c5) 12. Bxd4 {[%emt 0:00:02]} c5 {[%emt 0:00:10]} 13. Be3 {[%emt 0:00:50]} Qe7 {[%emt 0:00:18][%cal Ob6b5]} 14. Qf3 {[%emt 0:00:27]} O-O {[%emt 0:02:18][%cal Ob6b5]} 15. Bf5 {[%emt 0:00:34]} a6 {[%emt 0:02:11]} (15... Rfe8 $15 {feels stronger.} 16. Kd2 Qe5) 16. O-O-O $11 {[%emt 0:03:00][%cal Ba1d1,Bd1d2,Bd2h2,Bh2h6,Bh6f6][%mdl 32]} b5 {[%emt 0:00:03]} 17. Rd2 {[%emt 0:00:30] aiming for Rdh2.} bxc4 $2 {[%emt 0:00:41] [#]} (17... Qd6 $11) 18. Rdh2 $1 $18 {[%emt 0:00:02]} d5 $2 {[%emt 0:04:55]} (18... cxd3 19. Rxh6 Qe5 20. Bxg5 $16) (18... Qe5) 19. Rxh6 {[%emt 0:00:03]} ({But not} 19. Nxd5 $2 Nxd5 20. exd5 cxd3 $19) 19... d4 {[%emt 0:00:05] [#]} 20. Bxg5 {[%emt 0:00:11]} dxc3 {[%emt 0:00:01]} (20... Rfe8 21. Bh7+) 21. Bh7+ {[%emt 0:01:54] White mates.} Kh8 {[%emt 0:00:02]} 22. Rxf6 {[%emt 0:01:07]} cxd3 {[%emt 0:01:31] [#]} 23. Qh5 $1 {[%emt 0:00:51]} d2+ {[%emt 0:00:08]} 24. Kd1 {[%emt 0:00:21]} c2+ {[%emt 0:00:15]} 25. Kxc2 {[%emt 0:00:17]} d1=Q+ 26. Rxd1 {[%emt 0:00:25]} Rfd8 {[%emt 0:00:29]} 27. Bg6+ {[%emt 0:00:06][%cal Bh7g6,Bg6f7,Bf7d5][%mdl 32]} Kg8 {[%emt 0:00:09]} 28. Bxf7+ {[%emt 0:00:06]} Kf8 {[%emt 0:00:06]} 29. Bd5+ {[%emt 0:00:07]} Bxf6 {[%emt 0:00:04]} 30. Bh6+ {[%emt 0:00:04] Weighted Error Value: White=0.08 (flawless) /Black=0.52} 1-0

[Event "Czech Open-Rapid 2022"]
[Site "Pardubice"]
[Date "2022.07.21"]
[Round "6.3"]
[White "Akesson, Ralf"]
[Black "Pulpan, Jakub"]
[Result "1/2-1/2"]
[ECO "E06"]
[WhiteElo "2427"]
[BlackElo "2424"]
[Annotator "RC"]
[PlyCount "75"]
[EventDate "2022.07.20"]
[EventType "swiss"]
[EventCountry "CZE"]
[SourceTitle "playchess.com"]
[Source "ChessBase"]
[SourceQuality "1"]
[TimeControl "1200+10"]

1. d4 {[%emt 0:00:03]} Nf6 {[%emt 0:00:03]} 2. c4 {[%emt 0:00:03]} e6 {[%emt 0:00:02]} 3. Nf3 {[%emt 0:00:05]} d5 {[%emt 0:00:07]} 4. g3 {[%emt 0:00:05]} Be7 {[%emt 0:00:29]} 5. Bg2 {[%emt 0:00:02]} O-O {[%emt 0:00:02]} 6. O-O {[%emt 0:00:04]} dxc4 {[%emt 0:00:04]} 7. Qc2 {[%emt 0:00:04]} b5 {[%emt 0:00:46]} 8. a4 {[%emt 0:00:23]} b4 {[%emt 0:00:01]} 9. Nfd2 {[%emt 0:01:03]} Nd5 {[%emt 0:00:01]} 10. Nxc4 {[%emt 0:00:11]} c5 {[%emt 0:00:01]} 11. dxc5 {[%emt 0:01:02]} Ba6 {[%emt 0:00:01]} 12. Nbd2 {[%emt 0:00:34]} Bxc5 {[%emt 0:01:04]} 13. e4 {[%emt 0:01:22]} Nf6 {[%emt 0:00:42]} 14. e5 {[%emt 0:00:10]} Nd5 {[%emt 0:00:01]} 15. Ne4 {[%emt 0:00:17]} Be7 {[%emt 0:01:46]} 16. Rd1 {[%emt 0:00:45]} Nd7 {[%emt 0:01:11]} 17. b3 {[%emt 0:03:03]} Rc8 {[%emt 0:00:55]} 18. Bb2 {[%emt 0:00:02]} N7b6 {[%emt 0:02:24]} 19. Bf1 {[%emt 0:00:12]} Qc7 {[%emt 0:04:18]} 20. Rac1 {[%emt 0:00:11]} Nxc4 {[%emt 0:02:07]} 21. bxc4 {[%emt 0:00:15]} Nc3 {[%emt 0:04:11]} 22. Bxc3 {[%emt 0:01:04]} bxc3 {[%emt 0:00:01]} 23. Qxc3 {[%emt 0:00:12]} Bb7 {[%emt 0:01:35]} 24. Nd6 {[%emt 0:00:32]} Qc6 {[%emt 0:00:07]} 25. Nxb7 {[%emt 0:02:21]} Qxb7 {[%emt 0:00:01]} 26. Bg2 {[%emt 0:00:25]} Qc7 {[%emt 0:00:06]} 27. a5 {[%emt 0:00:06]} Rfd8 {[%emt 0:00:28]} 28. Rxd8+ {[%emt 0:00:38]} Qxd8 {[%emt 0:00:21]} 29. Bb7 {[%emt 0:00:39]} Rc7 {[%emt 0:00:12]} 30. a6 {[%emt 0:00:02]} Bc5 {[%emt 0:00:20]} 31. Kg2 {[%emt 0:00:30]} Rd7 {[%emt 0:00:17]} 32. Rc2 {[%emt 0:00:21]} g6 {[%emt 0:00:28]} 33. Qf3 {[%emt 0:00:57]} Kg7 {[%emt 0:00:02]} 34. Qc6 {[%emt 0:00:15]} Rc7 {[%emt 0:00:12]} 35. Qe4 {[%emt 0:00:05]} Rd7 {[%emt 0:00:13]} 36. Qc6 {[%emt 0:00:37]} Rc7 {[%emt 0:00:02]} 37. Qe4 {[%emt 0:00:11]} Rd7 {[%emt 0:00:01]} 38. Qc6 {[%emt 0:00:22]} 1/2-1/2

[Event "Czech Open-Rapid 2022"]
[Site "Pardubice"]
[Date "2022.07.21"]
[Round "6.4"]
[White "Plat, Vojtech"]
[Black "Mladek, Richard"]
[Result "1-0"]
[ECO "A06"]
[WhiteElo "2554"]
[BlackElo "2330"]
[Annotator "TA"]
[PlyCount "61"]
[EventDate "2022.07.20"]
[EventType "swiss"]
[EventCountry "CZE"]
[SourceTitle "playchess.com"]
[Source "ChessBase"]
[SourceQuality "1"]
[TimeControl "1200+10"]

{[%evp 9,61,0,6,-10,-7,-8,-7,-7,20,12,21,16,13,4,8,5,8,2,21,12,25,0,21,-33,0,-107,-35,-58,0,-126,-110,-304,-267,-298,287,306,430,422,435,420,404,412,378,409,1808,1787,1788,1716,1710,1610,1681,1645,1397,1402]} 1. Nf3 {[%emt 0:00:02]} d5 {[%emt 0:00:01]} 2. d4 {[%emt 0:00:01]} e6 {[%emt 0:00:02]} 3. Bf4 {[%emt 0:00:03]} c5 {[%emt 0:00:30]} 4. e3 {[%emt 0:00:02]} Nf6 {[%emt 0:00:22]} 5. c3 {[%emt 0:00:03]} Bd6 {[%emt 0:00:22]} 6. Bxd6 {[%emt 0:00:03] D02: 1 d4 d5 2 Nf3 sidelines, including 2...Nf6 3 g3 and 2...Nf6 3 Bf4.} Qxd6 {[%emt 0:00:01]} 7. Nbd2 {[%emt 0:00:07]} O-O {[%emt 0:00:25]} 8. Ne5 {[%emt 0:00:15] The position is equal.} Nc6 {[%emt 0:00:31]} 9. f4 {[%emt 0:00:02]} Rb8 {[%emt 0:00:54]} 10. Bd3 {[%emt 0:00:10]} b5 {[%emt 0:00:12]} 11. O-O {[%emt 0:00:14][%cal Bh1f1,Bf1f3,Bf3h3][%mdl 32]} b4 {[%emt 0:00:16]} 12. Rf3 {[%emt 0:02:24]} bxc3 {[%emt 0:00:37]} 13. bxc3 {[%emt 0:00:01] [#]} Ne7 $146 {[%emt 0:04:04]} ({Predecessor:} 13... h6 14. g4 Nd7 15. g5 Ncxe5 16. dxe5 Nxe5 17. fxe5 Qxe5 18. gxh6 Qg5+ 19. Rg3 Qxh6 {½-½ (35) Polyakova,N (2066)-Mednikova,S (2177) Kaunas 2012}) 14. Rh3 {[%emt 0:00:06]} g6 $1 {[%emt 0:00:09]} 15. Qe1 {[%emt 0:00:27]} Kg7 {[%emt 0:01:28]} 16. Qh4 {[%emt 0:00:06]} (16. dxc5 $11 Qxc5 17. Nb3 (17. Qh4 Qxc3 18. Qh6+ Kg8 $17)) 16... h5 $15 {[%emt 0:00:21]} 17. Qg5 {[%emt 0:05:52]} (17. g4 $11 {remains equal.}) 17... Nh7 {[%emt 0:00:07]} ({Black should play} 17... Nf5 $17 {Threatens to win with ...Nh7.} 18. Bxf5 exf5) 18. Qg3 {[%emt 0:00:04]} Nf6 {[%emt 0:00:02]} (18... c4 $15 19. Bxg6 fxg6 20. Rxh5 Bd7) 19. Rf1 {[%emt 0:02:03]} (19. Qg5 $11) 19... cxd4 {[%emt 0:00:50]} 20. Ndf3 $2 {[%emt 0:03:39]} (20. exd4 $17 {might work better.} Ba6 21. Qe1) 20... dxe3 {[%emt 0:02:35]} 21. Ng5 {[%emt 0:00:09]} Ne4 $4 {[%emt 0:01:46][%mdl 8192]} (21... Nf5 $19 22. Bxf5 e2) 22. Bxe4 $18 {[%emt 0:00:02]} dxe4 {[%emt 0:00:02] [#]} (22... Qb6 {was necessary.} 23. Re1 (23. Qxe3 dxe4 24. Nxe4 f6 $17) 23... Qb2) 23. Rxh5 $3 {[%emt 0:00:21][%mdl 512]} e2 {[%emt 0:00:54] ( -> ...Qc5+)} 24. Rh7+ {[%emt 0:00:48]} Kg8 {[%emt 0:00:01]} 25. Re1 $1 {[%emt 0:00:27] White wants to mate with Qh4.} ({Don't take} 25. Rh8+ Kg7 26. Rh7+ Kg8 27. Rh8+ Kg7 28. Rh7+ $18) 25... Nf5 {[%emt 0:03:46] [#] Inhibits Qh4.} (25... f6 {is a self mate.} 26. Qh4 $1 Qc5+ 27. Kh1 fxg5 28. Rh8+ Kg7 29. Qh7+ Kf6 30. Rxf8#) 26. Qh3 {[%emt 0:02:55] Intending Ng4 and mate. Really sharp!} Rb1 {[%emt 0:00:02]} (26... Qd1 $142 27. Rh8+ Kg7 28. Qh7+ Kf6 29. Nxe4+ Ke7 30. Nc6+ (30. Nxg6+ Kd7 $17) 30... Kd7 31. Nxb8+ Kc7) 27. Rh8+ {[%emt 0:00:16] White is clearly winning.} Kg7 {[%emt 0:00:01]} 28. Qh7+ {[%emt 0:00:04]} Kf6 {[%emt 0:00:01]} 29. Nxe4+ {[%emt 0:00:10]} Ke7 {[%emt 0:00:01]} 30. Nxd6 {[%emt 0:01:07] Pair of Knights!} Rxe1+ {[%emt 0:00:21]} 31. Kf2 {[%emt 0:00:00] Weighted Error Value: White=0.28 (precise) /Black=0.54} 1-0

[Event "Czech Open-Rapid 2022"]
[Site "Pardubice"]
[Date "2022.07.21"]
[Round "6.5"]
[White "Klimakovs, Sergejs"]
[Black "Stocek, Jiri"]
[Result "0-1"]
[ECO "B40"]
[WhiteElo "2266"]
[BlackElo "2548"]
[Annotator "TA"]
[PlyCount "94"]
[EventDate "2022.07.20"]
[EventType "swiss"]
[EventCountry "CZE"]
[SourceTitle "playchess.com"]
[Source "ChessBase"]
[SourceQuality "1"]
[TimeControl "1200+10"]

{[%evp 12,94,38,23,34,26,43,55,24,26,47,31,10,26,41,3,64,66,83,92,75,11,124,114,243,236,244,252,255,245,295,295,395,0,213,0,360,359,381,0,197,-385,-385,-385,50,47,106,104,110,39,33,41,38,39,34,45,35,60,50,0,0,0,0,-17,-15,-19,-7,-12,-11,-7,0,-67,0,0,0,-74,-74,-361,-356,-612,-630,-588,-584,-458,-335]} 1. e4 {[%emt 0:00:02]} c5 {[%emt 0:00:13]} 2. Nf3 {[%emt 0:00:03]} e6 {[%emt 0:00:11]} 3. d4 {[%emt 0:00:02]} cxd4 {[%emt 0:00:02]} 4. Nxd4 {[%emt 0:00:02]} Nf6 {[%emt 0:00:02]} 5. Nc3 {[%emt 0:00:14]} Nc6 {[%emt 0:00:02]} 6. Ndb5 {[%emt 0:00:15]} Bc5 {[%emt 0:00:40]} 7. Bf4 {[%emt 0:01:56] [#] Strongly threatening Nc7+. The main line 7.Bf4 scores better than 7.Nd6+.} O-O {[%emt 0:00:16] B45: Sicilian Four Knights.} 8. Bc7 {[%emt 0:00:07]} Qe7 {[%emt 0:00:03] Hoping for ...d5.} 9. Bd6 $1 {[%emt 0:00:05]} Bxd6 {[%emt 0:00:03] White is slightly better.} 10. Qxd6 {[%emt 0:00:14]} Qd8 {[%emt 0:00:11]} 11. O-O-O {[%emt 0:00:33]} a6 {[%emt 0:00:10]} 12. Nd4 $36 {[%emt 0:00:47][%mdl 2048] White is pushing.} Ne7 {[%emt 0:01:05]} 13. e5 {[%emt 0:05:58]} Ng4 {[%emt 0:04:30] [#]} (13... Ne8 $11 14. Qb4 b5) 14. Rd2 $146 {[%emt 0:00:43]} ({Predecessor:} 14. Ne4 Ng6 15. Be2 N4xe5 16. f4 Nc6 17. Nxc6 bxc6 18. Nc5 Qa5 19. f5 exf5 20. Bc4 {1-0 (36) Suran,J (2412)-Jurcik,M (2478) Czech Republic 2018}) 14... b5 {[%emt 0:00:50]} 15. h3 {[%emt 0:01:23]} Nh6 {[%emt 0:00:09]} 16. Ne4 {[%emt 0:00:45]} (16. g4 $16) 16... Bb7 {[%emt 0:00:33]} (16... Nef5 $11 17. Qb4 Bb7 18. Nxf5 Nxf5) 17. Nc5 $1 $16 {[%emt 0:01:13][%csl LRb7,LRd7]} Bc8 {[%emt 0:09:03]} (17... Bd5 $16 {was worth a try.}) 18. g4 $18 Ra7 19. Bg2 {[%emt 0:03:11] Prevents Bb7.} Re8 {[%emt 0:00:24]} 20. f4 {[%emt 0:00:22]} Qc7 {[%emt 0:00:11]} 21. Ne4 {[%emt 0:00:56] Against f6} Qd8 {[%emt 0:01:29]} 22. Nc5 {[%emt 0:01:02] Inhibits Bb7.} (22. Qa3 $142) 22... Qc7 $1 {[%emt 0:00:04]} 23. Ne4 $2 {[%emt 0:02:31] Inhibits f6.} (23. f5 $18) 23... Qa5 $2 {[%emt 0:00:34][%mdl 8192]} (23... Qd8 $1 $11) 24. Nb3 {[%emt 0:00:36]} Qd8 {[%emt 0:00:21]} 25. Nd4 $2 {[%emt 0:00:24]} (25. Qd4 $18 Qc7 26. Nd6) 25... Bb7 $2 {[%emt 0:00:19]} (25... Qa5 $1 $11 {and Black is okay.} 26. Nb3 Qd8) 26. Nc5 $4 {[%emt 0:00:33][%mdl 8192]} (26. Qa3 $18 {avoids the disaster.}) 26... Bxg2 $19 {[%emt 0:00:14]} 27. Rxg2 {[%emt 0:00:01] [#]} Nc8 $2 {[%emt 0:00:12]} (27... Qa8 $1 $19 28. Nc6 Nxc6) 28. Qb8 $14 {[%emt 0:00:01]} Qb6 {[%emt 0:00:56]} (28... f6 $14) 29. Qxb6 $16 {[%emt 0:00:08]} Nxb6 {[%emt 0:00:01]} 30. g5 {[%emt 0:00:09]} (30. Ne4 $16) 30... Nf5 $14 {[%emt 0:00:11]} 31. Nxf5 {[%emt 0:00:01]} exf5 {[%emt 0:00:00]} 32. Rd1 {[%emt 0:00:29]} Rc8 33. Rd6 {[%emt 0:00:34]} Rxc5 {[%emt 0:00:22]} 34. Rxb6 {[%emt 0:00:01][%mdl 4096] Endgame Intending Rb8+ and mate. KRR-KRR} g6 35. b3 {[%emt 0:00:20] Prevents Rc4.} (35. c3 $14) 35... Rc3 $11 {[%emt 0:00:17]} 36. Rd2 {[%emt 0:00:03]} Rxh3 {[%emt 0:00:21]} 37. Rbd6 {[%emt 0:00:19]} Rf3 {[%emt 0:00:05]} 38. R2d4 {[%emt 0:00:01]} Rf2 {[%emt 0:00:09]} 39. c4 bxc4 {[%emt 0:00:07]} 40. Rxc4 {[%emt 0:00:33] aiming for Rc8+.} Kg7 {[%emt 0:00:08]} 41. a4 {[%emt 0:00:09]} ({White should play} 41. Rd2 $11 Rf1+ 42. Kc2) 41... h5 {[%emt 0:00:17]} (41... a5 $1 $15) 42. gxh6+ $1 Kxh6 {[%emt 0:00:02]} 43. Rf6 {[%emt 0:00:07]} (43. b4 $11 {keeps the balance.}) 43... Kg7 $17 {[%emt 0:00:09] Threatens to win with ...d5.} 44. Rc8 $2 {[%emt 0:00:01][%mdl 8192]} (44. Rd6 $17 {keeps fighting.}) 44... Rxf4 $19 {[%emt 0:00:13]} 45. Re8 $2 {[%emt 0:00:01]} (45. Rc5) 45... Rc7+ {[%emt 0:00:10] Black is clearly winning.} 46. Kd2 {[%emt 0:00:27]} Rd4+ {[%emt 0:00:01]} 47. Ke3 {[%emt 0:00:20]} Re4+ {[%emt 0:00:02] What a bad dream for White.  Weighted Error Value: White=0.77/Black=0.46} 0-1